[Event "Championnat d'Europe Rapide"]
[Date "2024.12.07"]
[White "Gulin, Zoran J"]
[Black "Jobava, Baadur"]
[WhiteElo "1871"]
[BlackElo "2578"]
[Round "1.8"]
[Result "0-1"]
[TimeControl "900+10"]

1. e4 {[%emt 00:53:09] [%clk 00:15:10]} d6 {[%emt 00:01:28] [%clk 00:13:56]} 2.
d4 {[%emt 00:00:10] [%clk 00:15:19]} Nf6 {[%emt 00:00:04] [%clk 00:14:03]} 3.
Nc3 {[%emt 00:00:02] [%clk 00:15:26]} e5 {[%emt 00:00:04] [%clk 00:14:10]} 4.
dxe5 {[%emt 00:00:29] [%clk 00:15:07]} dxe5 {[%emt 00:00:02] [%clk 00:14:18]} 5.
Qxd8+ {[%emt 00:00:16] [%clk 00:15:01]} Kxd8 {[%emt 00:00:02] [%clk 00:14:26]}
6. Bg5 {[%emt 00:00:05] [%clk 00:15:05]} c6 {[%emt 00:00:09] [%clk 00:14:27]} 7.
O-O-O+ {[%emt 00:00:16] [%clk 00:14:59]} Kc7 {[%emt 00:00:17] [%clk 00:14:20]}
8. Bc4 {[%emt 00:00:29] [%clk 00:14:40]} Be6 {[%emt 00:00:26] [%clk 00:14:06]}
9. Bxe6 {[%emt 00:00:07] [%clk 00:14:41]} fxe6 {[%emt 00:00:02] [%clk 00:14:14]}
10. f3 {[%emt 00:00:09] [%clk 00:14:42]} Nbd7 {[%emt 00:00:03] [%clk 00:14:21]}
11. Be3 {[%emt 00:00:11] [%clk 00:14:40]} a5 {[%emt 00:00:17] [%clk 00:14:15]}
12. Nge2 {[%emt 00:00:22] [%clk 00:14:27]} a4 {[%emt 00:00:12] [%clk 00:14:13]}
13. a3 {[%emt 00:00:08] [%clk 00:14:29]} b5 {[%emt 00:00:05] [%clk 00:14:18]}
14. Na2 {[%emt 00:00:46] [%clk 00:13:53]} Nb6 {[%emt 00:00:15] [%clk 00:14:14]}
15. Bxb6+ {[%emt 00:01:22] [%clk 00:12:40]} Kxb6 {[%emt 00:00:02] [%clk
00:14:22]} 16. Rd3 {[%emt 00:00:13] [%clk 00:12:37]} Bc5 {[%emt 00:00:28] [%clk
00:14:05]} 17. Rhd1 {[%emt 00:00:18] [%clk 00:12:28]} g5 {[%emt 00:00:08] [%clk
00:14:08]} 18. h3 {[%emt 00:00:21] [%clk 00:12:16]} h5 {[%emt 00:00:02] [%clk
00:14:16]} 19. Rh1 {[%emt 00:00:41] [%clk 00:11:45]} Rad8 {[%emt 00:00:29] [%clk
00:13:58]} 20. Rxd8 {[%emt 00:00:22] [%clk 00:11:33]} Rxd8 {[%clk 00:14:05]} 21.
Nac3 {[%emt 00:01:07] [%clk 00:10:38]} h4 {[%emt 00:00:53] [%clk 00:13:22]} 22.
Rd1 {[%emt 00:00:17] [%clk 00:10:30]} Be3+ {[%emt 00:00:26] [%clk 00:13:08]} 23.
Kb1 {[%emt 00:00:02] [%clk 00:10:37]} Rg8 {[%emt 00:02:08] [%clk 00:11:10]} 24.
Rd6 {[%emt 00:01:10] [%clk 00:09:37]} Re8 {[%emt 00:00:02] [%clk 00:11:19]} 25.
Nd1 {[%emt 00:00:25] [%clk 00:09:21]} Bc5 {[%emt 00:00:03] [%clk 00:11:26]} 26.
Rd3 {[%emt 00:00:03] [%clk 00:09:27]} Nh5 {[%emt 00:00:32] [%clk 00:11:06]} 27.
Rd7 {[%emt 00:01:20] [%clk 00:08:16]} Nf4 {[%emt 00:00:31] [%clk 00:10:45]} 28.
Nxf4 {[%emt 00:00:04] [%clk 00:08:23]} gxf4 {[%emt 00:00:01] [%clk 00:10:54]}
29. Rg7 {[%emt 00:00:11] [%clk 00:08:21]} Rd8 {[%emt 00:00:09] [%clk 00:10:56]}
30. Nc3 {[%emt 00:00:31] [%clk 00:07:59]} Rd2 {[%emt 00:00:13] [%clk 00:10:54]}
31. Kc1 {[%emt 00:00:50] [%clk 00:07:18]} Be3 {[%emt 00:00:06] [%clk 00:10:58]}
32. Kb1 {[%emt 00:00:14] [%clk 00:07:14]} Rf2 {[%emt 00:00:23] [%clk 00:10:45]}
33. Rg6 {[%emt 00:01:35] [%clk 00:05:49]} Kc7 {[%emt 00:04:54] [%clk 00:06:02]}
34. Rg4 {[%emt 00:02:06] [%clk 00:03:52]} Kd6 {[%emt 00:00:37] [%clk 00:05:36]}
35. Rxh4 {[%emt 00:01:26] [%clk 00:02:36]} Rxg2 {[%emt 00:00:04] [%clk
00:05:42]} 36. Rh8 {[%emt 00:00:06] [%clk 00:02:39]} Rg3 {[%emt 00:00:18] [%clk
00:05:34]} 37. h4 {[%emt 00:00:12] [%clk 00:02:37]} Rxf3 {[%emt 00:00:03] [%clk
00:05:41]} 38. h5 {[%emt 00:00:03] [%clk 00:02:45]} Rf1+ {[%emt 00:00:38] [%clk
00:05:13]} 39. Ka2 {[%emt 00:00:02] [%clk 00:02:52]} f3 {[%emt 00:00:02] [%clk
00:05:21]} 40. Rf8 {[%emt 00:00:47] [%clk 00:02:15]} Ke7 {[%emt 00:00:14] [%clk
00:05:17]} 0-1

[Site "Europe Echecs"]

[Event "Championnat d'Europe Rapide"]
[Date "2024.12.07"]
[White "Ragger, Markus"]
[Black "Rakulj, Stanislav"]
[WhiteElo "2577"]
[BlackElo "1928"]
[Round "1.9"]
[Result "1-0"]
[TimeControl "900+10"]

1. d4 {[%clk 00:15:18]} e6 {[%emt 00:00:02] [%clk 00:15:18]} 2. c4 {[%emt
00:00:05] [%clk 00:15:25]} Nf6 {[%clk 00:15:27]} 3. Nf3 {[%emt 00:00:01] [%clk
00:15:33]} b6 {[%emt 00:00:02] [%clk 00:15:35]} 4. g3 {[%emt 00:00:04] [%clk
00:15:41]} Bb7 {[%clk 00:15:43]} 5. Bg2 {[%clk 00:15:50]} Be7 {[%emt 00:00:02]
[%clk 00:15:51]} 6. O-O {[%emt 00:00:03] [%clk 00:15:57]} O-O {[%emt 00:00:02]
[%clk 00:15:59]} 7. d5 {[%emt 00:00:01] [%clk 00:16:05]} exd5 {[%emt 00:00:05]
[%clk 00:16:04]} 8. Nd4 {[%emt 00:00:08] [%clk 00:16:08]} Bc5 {[%emt 00:01:02]
[%clk 00:15:12]} 9. Nf5 {[%emt 00:00:31] [%clk 00:15:47]} d6 {[%emt 00:03:28]
[%clk 00:11:54]} 10. cxd5 {[%emt 00:00:42] [%clk 00:15:14]} Nbd7 {[%emt
00:00:04] [%clk 00:12:00]} 11. a3 {[%emt 00:00:34] [%clk 00:14:50]} a5 {[%emt
00:00:01] [%clk 00:12:09]} 12. Nc3 {[%emt 00:00:03] [%clk 00:14:58]} Re8 {[%emt
00:00:09] [%clk 00:12:10]} 13. Rb1 {[%emt 00:00:35] [%clk 00:14:33]} b5 {[%emt
00:01:07] [%clk 00:11:13]} 14. Nxb5 {[%emt 00:00:11] [%clk 00:14:31]} Ba6 {[%emt
00:00:02] [%clk 00:11:22]} 15. Nbd4 {[%emt 00:00:32] [%clk 00:14:09]} Ne5 {[%emt
00:00:33] [%clk 00:10:59]} 16. Qd2 {[%emt 00:01:19] [%clk 00:13:00]} Nfd7 {[%emt
00:00:28] [%clk 00:10:41]} 17. b4 {[%emt 00:01:06] [%clk 00:12:04]} axb4 {[%emt
00:00:43] [%clk 00:10:08]} 18. axb4 {[%clk 00:12:13]} Bb6 {[%emt 00:00:01] [%clk
00:10:17]} 19. b5 {[%emt 00:04:13] [%clk 00:08:09]} Bc8 {[%emt 00:00:23] [%clk
00:10:05]} 20. h4 {[%emt 00:01:01] [%clk 00:07:17]} Nf8 {[%emt 00:00:36] [%clk
00:09:39]} 21. Qc2 {[%emt 00:01:20] [%clk 00:06:07]} Bxf5 {[%emt 00:01:32] [%clk
00:08:17]} 22. Nxf5 {[%emt 00:00:02] [%clk 00:06:15]} Qf6 {[%emt 00:00:02] [%clk
00:08:26]} 23. Bg5 {[%emt 00:00:44] [%clk 00:05:41]} Qg6 {[%emt 00:00:01] [%clk
00:08:34]} 24. Be4 {[%emt 00:00:03] [%clk 00:05:49]} Kh8 {[%emt 00:00:25] [%clk
00:08:19]} 25. Kg2 {[%emt 00:00:30] [%clk 00:05:29]} f6 {[%emt 00:00:49] [%clk
00:07:40]} 26. Nxd6 {[%emt 00:00:23] [%clk 00:05:16]} Qh5 {[%emt 00:00:22] [%clk
00:07:28]} 27. Nxe8 {[%emt 00:00:02] [%clk 00:05:24]} Rxe8 {[%emt 00:00:11]
[%clk 00:07:26]} 28. Bf4 {[%emt 00:00:12] [%clk 00:05:23]} Nfd7 {[%emt 00:00:18]
[%clk 00:07:18]} 29. Bf3 {[%emt 00:01:05] [%clk 00:04:28]} Nxf3 {[%emt 00:00:19]
[%clk 00:07:09]} 30. exf3 {[%emt 00:00:01] [%clk 00:04:36]} Qxd5 {[%emt
00:02:15] [%clk 00:05:04]} 31. Rfe1 {[%emt 00:00:09] [%clk 00:04:37]} Ne5 {[%emt
00:00:08] [%clk 00:05:07]} 32. Bxe5 {[%emt 00:00:02] [%clk 00:04:45]} fxe5
{[%clk 00:05:16]} 33. Qc6 {[%emt 00:00:03] [%clk 00:04:52]} Qf7 {[%emt 00:00:08]
[%clk 00:05:18]} 34. Ra1 {[%emt 00:00:22] [%clk 00:04:40]} Kg8 {[%emt 00:01:15]
[%clk 00:03:35]} 1-0

[Site "Europe Echecs"]

[Event "Championnat d'Europe Rapide"]
[Date "2024.12.07"]
[White "Tomasi, Elise"]
[Black "Safarli, Eltaj"]
[WhiteElo "2073"]
[BlackElo "2610"]
[Round "1.10"]
[Result "0-1"]
[TimeControl "900+10"]

1. d4 {[%emt 00:00:07] [%clk 00:15:13]} Nf6 {[%emt 00:00:03] [%clk 00:15:16]} 2.
Nf3 {[%emt 00:00:05] [%clk 00:15:19]} g6 {[%emt 00:00:02] [%clk 00:15:24]} 3. g3
{[%emt 00:00:03] [%clk 00:15:26]} Bg7 {[%emt 00:00:02] [%clk 00:15:31]} 4. Bg2
{[%emt 00:00:03] [%clk 00:15:33]} O-O {[%emt 00:00:03] [%clk 00:15:39]} 5. O-O
{[%emt 00:00:04] [%clk 00:15:39]} d5 {[%emt 00:00:02] [%clk 00:15:46]} 6. c4
{[%emt 00:00:05] [%clk 00:15:44]} c6 {[%emt 00:00:05] [%clk 00:15:52]} 7. cxd5
{[%emt 00:00:26] [%clk 00:15:29]} cxd5 {[%emt 00:00:02] [%clk 00:16:00]} 8. Nc3
{[%emt 00:00:10] [%clk 00:15:29]} Nc6 {[%emt 00:00:03] [%clk 00:16:06]} 9. Ne5
{[%emt 00:00:23] [%clk 00:15:16]} Bf5 {[%emt 00:00:02] [%clk 00:16:14]} 10. Be3
{[%emt 00:02:36] [%clk 00:12:50]} Rc8 {[%emt 00:00:51] [%clk 00:15:33]} 11. Rc1
{[%emt 00:00:22] [%clk 00:12:38]} e6 {[%emt 00:00:44] [%clk 00:14:59]} 12. Nxc6
{[%emt 00:00:40] [%clk 00:12:08]} Rxc6 {[%emt 00:00:07] [%clk 00:15:02]} 13. f3
{[%emt 00:00:03] [%clk 00:12:15]} h5 {[%emt 00:00:20] [%clk 00:14:52]} 14. h3
{[%emt 00:00:36] [%clk 00:11:48]} Qb6 {[%emt 00:00:31] [%clk 00:14:32]} 15. Na4
{[%emt 00:01:42] [%clk 00:10:16]} Rxc1 {[%emt 00:02:19] [%clk 00:12:22]} 16.
Qxc1 {[%emt 00:00:56] [%clk 00:09:30]} Qd6 {[%emt 00:00:18] [%clk 00:12:15]} 17.
Bf2 {[%emt 00:04:14] [%clk 00:05:26]} e5 {[%emt 00:00:18] [%clk 00:12:07]} 18.
Qc5 {[%emt 00:01:02] [%clk 00:04:33]} Qa6 {[%emt 00:01:05] [%clk 00:11:13]} 19.
Nc3 {[%emt 00:00:11] [%clk 00:04:33]} Rc8 {[%emt 00:00:04] [%clk 00:11:18]} 20.
Qe7 {[%emt 00:01:22] [%clk 00:03:21]} Re8 {[%emt 00:01:05] [%clk 00:10:23]} 21.
Qa3 {[%emt 00:02:12] [%clk 00:01:19]} Qxa3 {[%emt 00:00:58] [%clk 00:09:35]} 22.
bxa3 {[%emt 00:00:02] [%clk 00:01:28]} e4 {[%emt 00:00:03] [%clk 00:09:41]} 23.
fxe4 {[%emt 00:00:33] [%clk 00:01:04]} Nxe4 {[%emt 00:00:15] [%clk 00:09:37]}
24. Nxd5 {[%emt 00:00:30] [%clk 00:00:45]} Nxf2 {[%emt 00:00:29] [%clk
00:09:17]} 25. Kxf2 {[%emt 00:00:03] [%clk 00:00:52]} Bxd4+ {[%emt 00:00:08]
[%clk 00:09:19]} 26. e3 {[%emt 00:00:01] [%clk 00:01:01]} Be5 {[%emt 00:00:11]
[%clk 00:09:18]} 27. Rc1 {[%emt 00:00:16] [%clk 00:00:54]} Kg7 {[%emt 00:00:04]
[%clk 00:09:25]} 28. Rc4 {[%emt 00:00:19] [%clk 00:00:45]} Be6 {[%emt 00:00:14]
[%clk 00:09:22]} 29. e4 {[%emt 00:00:03] [%clk 00:00:52]} Rd8 {[%emt 00:00:10]
[%clk 00:09:21]} 30. a4 {[%emt 00:00:13] [%clk 00:00:49]} Rd6 {[%emt 00:00:16]
[%clk 00:09:15]} 31. Rb4 {[%emt 00:00:18] [%clk 00:00:42]} b6 {[%emt 00:00:10]
[%clk 00:09:15]} 32. a5 {[%emt 00:00:09] [%clk 00:00:42]} bxa5 {[%emt 00:00:11]
[%clk 00:09:14]} 33. Ra4 {[%emt 00:00:06] [%clk 00:00:46]} Rc6 {[%emt 00:00:08]
[%clk 00:09:16]} 34. Rxa5 {[%emt 00:00:27] [%clk 00:00:29]} Rc2+ {[%emt
00:00:05] [%clk 00:09:21]} 35. Kf3 {[%emt 00:00:04] [%clk 00:00:35]} Bd4 {[%emt
00:00:14] [%clk 00:09:17]} 36. g4 {[%emt 00:00:13] [%clk 00:00:32]} h4 {[%emt
00:00:02] [%clk 00:09:25]} 37. e5 {[%emt 00:00:09] [%clk 00:00:33]} Rxa2 {[%emt
00:00:56] [%clk 00:08:39]} 38. Rb5 {[%emt 00:00:23] [%clk 00:00:20]} a6 {[%emt
00:00:04] [%clk 00:08:45]} 0-1

[Site "Europe Echecs"]

[Event "Championnat d'Europe Rapide"]
[Date "2024.12.07"]
[White "Korobov, Anton"]
[Black "Quilter, Thomas A"]
[WhiteElo "2629"]
[BlackElo "2162"]
[Round "1.11"]
[Result "1-0"]
[TimeControl "900+10"]

1. d4 {[%emt 00:00:41] [%clk 00:14:33]} Nf6 {[%emt 00:01:09] [%clk 00:14:17]} 2.
c4 {[%emt 00:00:01] [%clk 00:14:42]} a6 {[%emt 00:00:12] [%clk 00:14:16]} 3. Nc3
{[%emt 00:00:09] [%clk 00:14:42]} b5 {[%emt 00:00:04] [%clk 00:14:23]} 4. cxb5
{[%emt 00:00:07] [%clk 00:14:44]} axb5 {[%emt 00:00:03] [%clk 00:14:31]} 5. Nxb5
{[%emt 00:00:01] [%clk 00:14:52]} Ba6 {[%emt 00:00:02] [%clk 00:14:39]} 6. Nc3
{[%emt 00:00:07] [%clk 00:14:55]} e6 {[%emt 00:00:34] [%clk 00:14:17]} 7. Nf3
{[%emt 00:00:02] [%clk 00:15:02]} c5 {[%emt 00:00:13] [%clk 00:14:14]} 8. g3
{[%emt 00:00:42] [%clk 00:14:30]} Nc6 {[%emt 00:00:14] [%clk 00:14:10]} 9. Bg2
{[%emt 00:00:01] [%clk 00:14:38]} Qb6 {[%emt 00:02:20] [%clk 00:12:01]} 10. O-O
{[%emt 00:01:14] [%clk 00:13:33]} cxd4 {[%emt 00:02:22] [%clk 00:09:49]} 11.
Nxd4 {[%emt 00:00:02] [%clk 00:13:41]} Rb8 {[%emt 00:02:20] [%clk 00:07:40]} 12.
Nxc6 {[%emt 00:00:09] [%clk 00:13:42]} dxc6 {[%emt 00:00:02] [%clk 00:07:48]}
13. Be3 {[%emt 00:00:16] [%clk 00:13:35]} Qb4 {[%emt 00:00:36] [%clk 00:07:24]}
14. Bxc6+ {[%emt 00:00:08] [%clk 00:13:35]} Ke7 {[%emt 00:00:10] [%clk
00:07:25]} 15. a3 {[%emt 00:00:25] [%clk 00:13:19]} Qc4 {[%emt 00:00:07] [%clk
00:07:28]} 16. Bf3 {[%emt 00:00:15] [%clk 00:13:13]} Rd8 {[%emt 00:01:10] [%clk
00:06:29]} 17. Qc2 {[%emt 00:00:15] [%clk 00:13:07]} Nd5 {[%emt 00:00:16] [%clk
00:06:25]} 18. Nxd5+ {[%emt 00:00:08] [%clk 00:13:09]} exd5 {[%emt 00:00:02]
[%clk 00:06:33]} 19. Qf5 {[%emt 00:00:09] [%clk 00:13:08]} Qc8 {[%emt 00:01:12]
[%clk 00:05:34]} 20. Qe5+ {[%emt 00:00:10] [%clk 00:13:05]} Qe6 {[%emt 00:00:08]
[%clk 00:05:37]} 21. Qc7+ {[%emt 00:00:10] [%clk 00:13:05]} Rd7 {[%emt 00:00:17]
[%clk 00:05:31]} 22. Qf4 {[%emt 00:00:07] [%clk 00:13:08]} f5 {[%emt 00:00:31]
[%clk 00:05:10]} 23. Rac1 {[%emt 00:00:10] [%clk 00:13:07]} Kf7 {[%emt 00:00:08]
[%clk 00:05:14]} 24. Rfd1 {[%emt 00:00:19] [%clk 00:12:56]} Bc4 {[%emt 00:01:40]
[%clk 00:03:45]} 25. Rxc4 {[%emt 00:00:51] [%clk 00:12:14]} dxc4 {[%emt
00:00:04] [%clk 00:03:52]} 26. Rxd7+ {[%emt 00:00:02] [%clk 00:12:22]} Qxd7
{[%emt 00:00:02] [%clk 00:04:00]} 27. Qxc4+ {[%emt 00:00:04] [%clk 00:12:28]}
Kg6 {[%emt 00:00:39] [%clk 00:03:30]} 28. h4 {[%emt 00:00:02] [%clk 00:12:36]}
h5 {[%emt 00:00:35] [%clk 00:03:07]} 29. Bc6 {[%emt 00:00:01] [%clk 00:12:44]}
Qd8 {[%emt 00:01:15] [%clk 00:02:02]} 30. Bg5 {[%emt 00:00:19] [%clk 00:12:34]}
Be7 {[%emt 00:00:09] [%clk 00:02:04]} 31. Qe6+ {[%emt 00:00:16] [%clk 00:12:27]}
Bf6 {[%emt 00:00:02] [%clk 00:02:13]} 32. Bd7 {[%emt 00:00:03] [%clk 00:12:34]}
Qa5 {[%emt 00:00:04] [%clk 00:02:18]} 33. Bxf6 {[%emt 00:00:14] [%clk 00:12:30]}
gxf6 {[%emt 00:00:02] [%clk 00:02:27]} 34. Be8+ {[%emt 00:00:02] [%clk
00:12:38]} Rxe8 {[%emt 00:00:38] [%clk 00:01:59]} 35. Qxe8+ {[%emt 00:00:02]
[%clk 00:12:45]} Kh6 {[%emt 00:00:06] [%clk 00:02:04]} 36. b4 {[%emt 00:00:07]
[%clk 00:12:47]} Qxa3 {[%emt 00:00:11] [%clk 00:02:04]} 37. Qe3+ {[%emt
00:00:04] [%clk 00:12:52]} 1-0

[Site "Europe Echecs"]

[Event "Championnat d'Europe Rapide"]
[Date "2024.12.07"]
[White "Skurniak, Szymon"]
[Black "Pultinevicius, Paulius"]
[WhiteElo "2075"]
[BlackElo "2579"]
[Round "1.12"]
[Result "0-1"]
[TimeControl "900+10"]

1. e4 {[%emt 00:00:04] [%clk 00:15:16]} c5 {[%emt 00:00:02] [%clk 00:15:19]} 2.
Nf3 {[%emt 00:00:08] [%clk 00:15:18]} e6 {[%emt 00:00:02] [%clk 00:15:27]} 3. b3
{[%emt 00:00:02] [%clk 00:15:25]} d5 {[%emt 00:01:27] [%clk 00:14:10]} 4. Bb5+
{[%emt 00:01:06] [%clk 00:14:30]} Bd7 {[%emt 00:00:13] [%clk 00:14:07]} 5. Bxd7+
{[%emt 00:00:28] [%clk 00:14:12]} Qxd7 {[%emt 00:03:15]} 6. exd5 {[%clk
00:13:26]} Qxd5 {[%emt 00:00:02] [%clk 00:12:06]} 7. Nc3 {[%emt 00:00:29] [%clk
00:13:06]} Qd8 {[%emt 00:00:26] [%clk 00:11:51]} 8. O-O {[%emt 00:02:25] [%clk
00:10:51]} Nc6 {[%emt 00:00:02] [%clk 00:11:58]} 9. Bb2 {[%emt 00:01:04] [%clk
00:09:58]} Nf6 {[%emt 00:02:35] [%clk 00:09:33]} 10. Ne2 {[%emt 00:00:27] [%clk
00:09:41]} Qc7 {[%emt 00:00:34] [%clk 00:09:09]} 11. d4 {[%emt 00:01:29] [%clk
00:08:22]} Rd8 {[%emt 00:00:26] [%clk 00:08:52]} 12. Qc1 {[%emt 00:00:22] [%clk
00:08:10]} cxd4 {[%emt 00:01:56] [%clk 00:07:06]} 13. Nexd4 {[%emt 00:00:08]
[%clk 00:08:13]} Nxd4 {[%emt 00:00:13] [%clk 00:07:02]} 14. Bxd4 {[%emt
00:00:33] [%clk 00:07:51]} Bc5 {[%emt 00:00:02] [%clk 00:07:10]} 15. Be5 {[%emt
00:01:04] [%clk 00:06:56]} Bd6 {[%emt 00:00:08] [%clk 00:07:13]} 16. Bxf6 {[%emt
00:01:13] [%clk 00:05:53]} gxf6 {[%emt 00:00:03] [%clk 00:07:20]} 17. Qh6 {[%emt
00:00:01] [%clk 00:06:01]} Ke7 {[%emt 00:00:40]} 18. c4 {[%clk 00:05:54]} Rdg8
{[%emt 00:00:37] [%clk 00:06:40]} 19. g3 {[%emt 00:00:51] [%clk 00:05:14]} Rg6
{[%emt 00:01:06] [%clk 00:05:44]} 20. Qh4 {[%emt 00:00:08] [%clk 00:05:16]} h5
{[%emt 00:00:06] [%clk 00:05:47]} 21. Rad1 {[%emt 00:00:49] [%clk 00:04:38]} Rg4
{[%emt 00:00:02] [%clk 00:05:53]} 22. Qh3 {[%emt 00:00:03] [%clk 00:04:47]} f5
{[%emt 00:00:14] [%clk 00:05:50]} 23. Rd4 {[%emt 00:00:17] [%clk 00:04:39]} Bc5
{[%emt 00:00:08] [%clk 00:05:52]} 24. Rxg4 {[%emt 00:00:14] [%clk 00:04:34]}
fxg4 {[%emt 00:00:02] [%clk 00:06:01]} 25. Qh4+ {[%clk 00:04:44]} f6 {[%emt
00:00:08] [%clk 00:06:03]} 26. Ne1 {[%emt 00:00:20] [%clk 00:04:34]} Kf7 {[%emt
00:00:14] [%clk 00:06:00]} 27. Nd3 {[%emt 00:00:02] [%clk 00:04:42]} Be7 {[%emt
00:00:01] [%clk 00:06:08]} 28. Re1 {[%emt 00:00:37] [%clk 00:04:15]} f5 {[%emt
00:00:03] [%clk 00:06:15]} 29. Ne5+ {[%emt 00:00:01] [%clk 00:04:23]} Kg7 {[%emt
00:00:01] [%clk 00:06:24]} 0-1

[Site "Europe Echecs"]

[Event "Championnat d'Europe Rapide"]
[Date "2024.12.07"]
[White "Sargissian, Gabriel"]
[Black "Chaerle, Josse"]
[WhiteElo "2628"]
[BlackElo "2024"]
[Round "1.13"]
[Result "1-0"]
[TimeControl "900+10"]

1. Nf3 {[%emt 00:53:12] [%clk 00:15:17]} Nf6 {[%emt 00:00:06] [%clk 00:15:16]}
2. g3 {[%emt 00:00:03] [%clk 00:15:22]} c5 {[%emt 00:01:50] [%clk 00:13:36]} 3.
Bg2 {[%emt 00:00:03] [%clk 00:15:29]} Nc6 {[%emt 00:00:03] [%clk 00:13:43]} 4.
O-O {[%emt 00:00:03] [%clk 00:15:35]} d5 {[%emt 00:00:58] [%clk 00:12:55]} 5. d4
{[%emt 00:00:22] [%clk 00:15:23]} e6 {[%emt 00:00:03] [%clk 00:13:02]} 6. c4
{[%emt 00:00:09] [%clk 00:15:25]} Be7 {[%emt 00:00:05] [%clk 00:13:06]} 7. cxd5
{[%emt 00:00:21] [%clk 00:15:14]} exd5 {[%emt 00:00:02] [%clk 00:13:14]} 8. dxc5
{[%emt 00:00:29] [%clk 00:14:55]} Bxc5 {[%emt 00:00:07] [%clk 00:13:18]} 9. a3
{[%emt 00:00:17] [%clk 00:14:48]} Ne4 {[%emt 00:01:03] [%clk 00:12:24]} 10. b4
{[%emt 00:00:17] [%clk 00:14:41]} Be7 {[%emt 00:00:03] [%clk 00:12:32]} 11. Bb2
{[%emt 00:00:28] [%clk 00:14:22]} O-O {[%emt 00:00:26] [%clk 00:12:16]} 12. Nfd2
{[%emt 00:01:22] [%clk 00:13:10]} Bf6 {[%emt 00:01:40] [%clk 00:10:46]} 13. Ra2
{[%emt 00:00:58] [%clk 00:12:22]} Be6 {[%emt 00:00:48] [%clk 00:10:09]} 14. Nb3
{[%emt 00:02:39] [%clk 00:09:53]} Rc8 {[%emt 00:01:12] [%clk 00:09:06]} 15. Nd4
{[%emt 00:00:49] [%clk 00:09:14]} Nxd4 {[%emt 00:01:30] [%clk 00:07:46]} 16.
Bxd4 {[%emt 00:00:03] [%clk 00:09:21]} Rc4 {[%emt 00:00:04] [%clk 00:07:53]} 17.
Bxf6 {[%emt 00:00:49] [%clk 00:08:42]} Qxf6 {[%emt 00:00:13] [%clk 00:07:49]}
18. Rc2 {[%emt 00:02:21]} Rxc2 {[%clk 00:06:20]} 19. Qxc2 {[%emt 00:00:02] [%clk
00:08:18]} Rc8 {[%clk 00:06:28]} 20. Qd3 {[%emt 00:00:13] [%clk 00:08:15]} h5
{[%emt 00:03:15] [%clk 00:03:24]} 21. Nd2 {[%emt 00:01:28] [%clk 00:06:57]} Rc3
{[%emt 00:00:41] [%clk 00:02:53]} 22. Nxe4 {[%emt 00:00:06] [%clk 00:07:00]}
dxe4 {[%emt 00:00:01] [%clk 00:03:02]} 23. Qxe4 {[%emt 00:00:04] [%clk
00:07:06]} Rxa3 {[%emt 00:00:12] [%clk 00:03:00]} 24. Qxb7 {[%emt 00:00:03]
[%clk 00:07:13]} h4 {[%emt 00:00:34] [%clk 00:02:37]} 25. Qa8+ {[%emt 00:00:57]
[%clk 00:06:26]} Kh7 {[%emt 00:00:02] [%clk 00:02:45]} 26. Qe4+ {[%emt 00:00:02]
[%clk 00:06:33]} g6 {[%emt 00:00:10] [%clk 00:02:45]} 27. gxh4 {[%emt 00:00:25]
[%clk 00:06:18]} Kg7 {[%emt 00:00:49] [%clk 00:02:06]} 28. e3 {[%emt 00:02:10]
[%clk 00:04:18]} Rc3 {[%emt 00:00:13] [%clk 00:02:03]} 29. h5 {[%emt 00:01:44]
[%clk 00:02:45]} Rc4 {[%emt 00:00:24] [%clk 00:01:49]} 30. Qf3 {[%emt 00:00:02]
[%clk 00:02:53]} Rxb4 {[%emt 00:01:05] [%clk 00:00:54]} 31. h6+ {[%emt 00:00:04]
[%clk 00:02:58]} 1-0

[Site "Europe Echecs"]